Cogmind - Beta 13 @@@ ROGUE MODE // 2024.04.04 @ 23:26:44 Player: DarkCat Result: Destroyed by X-62 Marksman with Pulse Rifle Performance ------------- Evolutions (3) 1500 Regions Visited (4) 800 Robots Destroyed (50) 250 Value Destroyed (1217) 1217 Prototype IDs (0) 0 Alien Tech Used (0) 0 Bonus (0) 0 TOTAL SCORE: 3767 Bonus ------- None Cogmind --------- Core Integrity 0/700 Matter 380/400 Energy 87/100 System Corruption 15% Temperature Cool (9) Movement Core (100) Ox1 Location -7/Factory Parts ------- > --- POWER (2) -------- (None) > --- PROPULSION (3) --- (None) > --- UTILITY (5) ------ Medium Matter Pod > --- WEAPON (3) ------- Particle Gun > --- INVENTORY (5) ---- VSS Leg Improved Heat Sink Improved Heat Sink Terrain Scan Processor Improved Datajack Peak State ------------ > --- POWER ------------ Micro Nuclear Core > --- PROPULSION ------- VSS Leg Gravmag System > --- UTILITY ---------- Improved Heat Sink Improved Heat Sink Compact Battery Target Analyzer ECM Suite > --- WEAPON ----------- Particle Gun Plasma Cannon Flak Gun > --- INVENTORY -------- Heat Sink Terrain Scan Processor Remote Datajack [Rating: 34] Favorites ----------- Power Ion Engine Engine Ion Engine Power Core Micro Nuclear Core Propulsion Aluminum Leg Leg Aluminum Leg Wheel Wheel Hover Unit Gravmag System Utility Small Storage Unit Device Improved Heat Sink Storage Small Storage Unit Processor Advanced Targeting Computer Protection Heavy Armor Plating Weapon Assault Cannon Energy Gun Particle Gun Energy Cannon Plasma Cannon Ballistic Gun Assault Rifle Ballistic Cannon Assault Cannon Launcher Grenade Launcher Build | -11 -10 -9 -8 -7 ------- Run | Yrd Mat Mat Mat Fac Slots Evolved 6 | . . 2 2 2 Power 1 | . . . 1 . Propulsion 1 | . . . . 1 Utility 3 | . . 1 1 1 Weapon 1 | . . 1 . . Parts Attached 53 | 6 7 7 11 22 Power 7 | 1 . 1 1 4 Engine 5 | 1 . 1 1 2 Core 2 | . . . . 2 Reactor . | . . . . . Propulsion 8 | 2 2 2 . 2 Treads . | . . . . . Leg 5 | . 2 2 . 1 Wheel 2 | 2 . . . . Hover 1 | . . . . 1 Flight . | . . . . . Utility 20 | 1 1 1 6 11 Device 11 | . . . 4 7 Storage 3 | 1 . . . 2 Processor 3 | . . . 2 1 Hackware . | . . . . . Protection 3 | . 1 1 . 1 Artifact . | . . . . . Weapon 18 | 2 4 3 4 5 Energy Gun 2 | . . . . 2 Energy Cannon 1 | . . . . 1 Ballistic Gun 10 | 2 3 1 2 2 Ballistic Cannon 4 | . . 2 2 . Launcher 1 | . 1 . . . Special Weapon . | . . . . . Impact Weapon . | . . . . . Slashing Weapon . | . . . . . Piercing Weapon . | . . . . . Special Melee Weapon . | . . . . . Unidentified Prototypes . | . . . . . Corrupted Parts 1 | . . . . 1 System Corruption 3 | . . . . 3 Parts Lost 24 | . . . 8 16 Power 3 | . . . . 3 Propulsion 2 | . . . 1 1 Utility 11 | . . . 3 8 Weapon 8 | . . . 4 4 Highest Loss Streak 9 | . . . 7 9 To Critical Strikes . | . . . . . Average Slot Usage (%) 79 | . 97 88 90 65 Engine 9 | . 14 11 14 4 Core 1 | . . . . 4 Leg 11 | . 8 21 17 3 Wheel 1 | . 19 . . . Hover 1 | . . . . 1 Device 13 | . . . 12 24 Storage 7 | . 14 11 9 3 Processor 2 | . . . 8 2 Protection 5 | . 11 11 2 3 Energy Gun 1 | . . . . 2 Ballistic Gun 9 | . 19 11 6 8 Ballistic Cannon 10 | . . 21 19 . Naked Turns 8 | . . . . 8 Heaviest Build 42 | 12 14 37 42 28 Greatest Support 20 | 20 20 20 20 12 Greatest Overweight (x) 4 | . . 3 2 4 Average Overweight (x) 1 | . . 1 1 1 Largest Inventory Capacity 8 | 8 8 8 8 5 Average Capacity 6 | 7 8 8 7 5 Most Carried 8 | 4 8 8 8 5 Average Carried 4 | 2 6 7 4 2 Final Capacity 8 | 8 8 8 5 5 Final Carried 7 | 4 7 7 5 5 Class Distribution -------------------- 29% | Tank 24% | Scavenger-Mutant 18% | Gunner 16% | Mutant 11% | Scavenger-Gunner Dominant Class ---------------- Mutant | -10/Materials Tank | -9/Materials Gunner | -8/Materials Scavenger-Mutant | -7/Factory Resources | -11 -10 -9 -8 -7 ----------- Run | Yrd Mat Mat Mat Fac Matter Collected 1664 | 185 20 549 322 588 Remotely . | . . . . . Salvage Created 1357 | . 135 393 265 564 Parts 101 | . 17 40 24 20 Haulers Intercepted 1 | . . 1 . . Recyclers Shooed . | . . . . . Parts Field Recycled . | . . . . . Retrieved Matter . | . . . . . Parts Self-Destructed . | . . . . . Prevented . | . . . . . Kills | -11 -10 -9 -8 -7 ------- Run | Yrd Mat Mat Mat Fac Combat Hostiles Destroyed 36 | . 6 10 10 10 Melee 1 | . . . . 1 Guns 9 | . . 2 2 5 Cannons 20 | . . 8 8 4 AOE 6 | . 6 . . . Classes Destroyed 11 | . 4 4 1 2 Worker 2 | . 1 . . 1 Builder 3 | . . 2 1 . Hauler 1 | . . 1 . . Recycler 4 | . 1 . 1 2 Watcher 4 | . 1 2 1 . Swarmer 16 | . 6 4 6 . Cutter 1 | . . . 1 . Grunt 13 | . . 5 1 7 Duelist 1 | . . . . 1 Sentry 3 | . . 1 2 . Programmer 2 | . . . . 2 Best Kill Streak 8 | . 8 6 5 3 Combat Bots Only 6 | . 6 4 3 3 Max Kills in Single Turn 5 | . 5 2 2 3 Gunslinging . | . . . . . Exploded 4 | . 4 . . . Melee 1 | . . . . 1 Uniques/NPCs Destroyed . | . . . . . Combat | -11 -10 -9 -8 -7 -------- Run | Yrd Mat Mat Mat Fac Hostile Shots Fired 353 | . 11 63 112 167 Missed 102 | . 4 17 32 49 Damage Taken 3469 | . 143 426 1134 1766 Core 939 | . 45 38 153 703 Absorbed by Shields 250 | . . . 112 138 Redirected to Shielding 9 | . 9 . . . Core Remaining (%) 86 | 100 82 90 72 . Volleys Fired 104 | . 13 24 30 37 Largest 3 | . 2 3 3 3 Hottest 173 | . 50 108 132 173 Shots Fired 252 | . 21 72 87 72 Gun 117 | . 15 24 24 54 Cannon 129 | . . 48 63 18 Launcher 6 | . 6 . . . Special . | . . . . . Kinetic 215 | . 15 72 87 41 Thermal 31 | . . . . 31 Explosive 6 | . 6 . . . Electromagnetic . | . . . . . Robot Hit Streak 13 | . 2 4 6 13 Robot Miss Streak 10 | . 5 7 5 10 Penetration Max . | . . . . . Secondary Targets . | . . . . . Shots Hit Robots 122 | . 5 26 40 51 Core Hits 103 | . 13 17 18 55 Critical Kills . | . . . . . Critical Parts Destroyed . | . . . . . Critical Strikes 2 | . . 1 . 1 Burn 1 | . . . . 1 Blast 1 | . . 1 . . Melee Attacks . | . . . . . Impact . | . . . . . Slashing . | . . . . . Piercing . | . . . . . Sneak Attacks . | . . . . . Combat Hostiles . | . . . . . Follow-up Attacks . | . . . . . Damage Inflicted 3095 | . 421 662 865 1147 Guns 1183 | . 49 143 160 831 Cannons 1491 | . . 519 705 267 Explosions 372 | . 372 . . . Melee . | . . . . . Ramming 49 | . . . . 49 Kinetic 2323 | . 49 662 865 747 Thermal 351 | . . . . 351 Explosive 372 | . 372 . . . Electromagnetic . | . . . . . Impact . | . . . . . Slashing . | . . . . . Piercing . | . . . . . Highest Corruption 15 | . . . . 15 Average Corruption 6 | . . . . 6 Corruption Purged . | . . . . . Corruption Blocked . | . . . . . Effects 15 | . . . . 15 Message Errors 5 | . . . . 5 Matter Fused 2 | . . . . 2 Energy Discharges 5 | . . . . 5 Data Loss (minor) 1 | . . . . 1 Misdirections 2 | . . . . 2 Overload Shots . | . . . . . Overflow Damage 40 | . . 29 11 . Projectiles 40 | . . 29 11 . Explosions . | . . . . . Melee . | . . . . . Knockbacks 12 | . . 3 8 1 Impact 1 | . . . . 1 Kinetic 11 | . . 3 8 . Secondary . | . . . . . Self-Inflicted Damage 89 | . 66 . . 23 Shots 2 | . 2 . . . Rammed 14 | . . . . 14 Targets Rammed 14 | . . . . 14 Kicked . | . . . . . Crushed . | . . . . . Highest Temperature 430 | . 10 430 332 75 Average Temperature 101 | . 7 121 101 24 Received Heat Transfer 561 | . . 54 138 369 Effects 2 | . . 1 1 . Shutdowns 2 | . . 1 1 . Siege Activations . | . . . . . Robots Corrupted . | . . . . . Combat Hostiles . | . . . . . Parts Fried . | . . . . . Impact Corruptions . | . . . . . Robots Melted . | . . . . . Combat Hostiles . | . . . . . Parts Melted 2 | . . . . 2 Heat Transferred 759 | . . . . 759 Parts Sabotaged . | . . . . . Parts Stolen . | . . . . . Parts Stripped . | . . . . . Power Chain Reactions . | . . . . . Alert | -11 -10 -9 -8 -7 ------- Run | Yrd Mat Mat Mat Fac Peak Influence 355 | . 235 355 353 145 Initial 114 | . . 98 114 70 Average 145 | . 130 198 255 68 Maximum Alert Level 1 | . 1 1 1 . Low Security (%) 68 | 100 47 49 34 100 Level 1 31 | . 52 50 65 . Level 2 . | . . . . . Level 3 . | . . . . . Level 4 . | . . . . . Level 5 . | . . . . . High Security . | . . . . . Max Security . | . . . . . Squads Dispatched 8 | . . 1 2 5 Investigation 2 | . . 1 . 1 Extermination 1 | . . . . 1 Reinforcement 3 | . . . 2 1 Assault . | . . . . . Garrison 2 | . . . . 2 Intercept . | . . . . . Searches Triggered . | . . . . . Construction Impeded 2 | . . . 1 1 Haulers Reinforced . | . . . . . Active Scanning Responses . | . . . . . Cargo Convoy Interrupts 1 | . . . . 1 Stealth | -11 -10 -9 -8 -7 --------- Run | Yrd Mat Mat Mat Fac Distress Signals 4 | . 1 2 1 . Communications Jammed . | . . . . . Distress Signals . | . . . . . Times Spotted 70 | . 9 16 21 24 Peak Tracking Total 7 | . 7 4 7 7 Tactical Retreats 4 | . . . . 4 Traps | -11 -10 -9 -8 -7 ------- Run | Yrd Mat Mat Mat Fac Traps Triggered 1 | . 1 . . . Indirectly . | . . . . . Trap Hack Attempts . | . . . . . Triggered . | . . . . . Disarmed . | . . . . . Reprogrammed . | . . . . . Reused . | . . . . . Traps Extracted . | . . . . . Installed . | . . . . . Triggered . | . . . . . Machines | -11 -10 -9 -8 -7 ---------- Run | Yrd Mat Mat Mat Fac Machines Disabled 6 | . 3 1 1 1 Max in Single Turn 2 | . 2 1 1 1 Machines Repaired . | . . . . . Machines Dismantled . | . . . . . Machines Sabotaged . | . . . . . Overloaded Fab Kills . | . . . . . Hacking | -11 -10 -9 -8 -7 --------- Run | Yrd Mat Mat Mat Fac Machines Accessed 7 | . 2 2 . 3 Terminals 2 | . 1 . . 1 Fabricators . | . . . . . Repair Stations 2 | . 1 1 . . Recycling Units 1 | . . . . 1 Scanalyzers 2 | . . 1 . 1 Garrison Access . | . . . . . Total Hacks 22 | . 6 7 . 9 Successful 12 | . 4 6 . 2 Failed 10 | . 2 1 . 7 Catastrophic 2 | . . . . 2 Database Lockouts . | . . . . . Manual . | . . . . . Terminals 6 | . 3 . . 3 Fabricators . | . . . . . Repair Stations 8 | . 3 5 . . Recycling Units 5 | . . . . 5 Scanalyzers 3 | . . 2 . 1 Garrison Access . | . . . . . Terminal Hacks 2 | . 2 . . . Dispatch Records 1 | . 1 . . . Zone Layout 1 | . 1 . . . Fabricator Hacks . | . . . . . Repair Station Hacks 6 | . 2 4 . . Scan Component 3 | . 1 2 . . Repair 2 | . 1 1 . . Refit 1 | . . 1 . . Recycling Unit Hacks 2 | . . . . 2 Recycle Component 1 | . . . . 1 Process 1 | . . . . 1 Scanalyzer 2 | . . 2 . . Insert Component 1 | . . 1 . . Analyze 1 | . . 1 . . Garrison Access Hacks . | . . . . . Unauthorized Hacks . | . . . . . Terminals . | . . . . . Fabricators . | . . . . . Repair Stations . | . . . . . Recycling Units . | . . . . . Scanalyzers . | . . . . . Garrison Access . | . . . . . Data Cores Recovered . | . . . . . Used . | . . . . . Hacking Detections 5 | . 2 1 . 2 Full Trace Events 2 | . . 1 . 1 Feedback Events . | . . . . . Feedback Blocked . | . . . . . Robot Schematics Acquired . | . . . . . Robots Built . | . . . . . Authchips . | . . . . . Time . | . . . . . Total Robot Build Rating . | . . . . . Part Schematics Acquired 1 | . . 1 . . Parts Built . | . . . . . Authchips . | . . . . . Time . | . . . . . Total Part Build Rating . | . . . . . Parts Repaired . | . . . . . Time 52 | . 26 26 . . Parts Recycled 1 | . . . . 1 Recycled Matter 25 | . . . . 25 Retrieved Matter . | . . . . . Retrieved Components . | . . . . . Parts Scanalyzed 1 | . . 1 . . Part Schematics Acquired 1 | . . 1 . . Parts Damaged . | . . . . . Bothacking | -11 -10 -9 -8 -7 ------------ Run | Yrd Mat Mat Mat Fac Used RIF Installer . | . . . . . Robots Hacked . | . . . . . Non-combat . | . . . . . Combat . | . . . . . Robot Hacks Applied . | . . . . . Relay Couplers Released . | . . . . . Fabnet Peak Effective % . | . . . . . Robots Rewired . | . . . . . Allies Hacked . | . . . . . Hacks Repelled . | . . . . . Allies | -11 -10 -9 -8 -7 -------- Run | Yrd Mat Mat Mat Fac Total Allies . | . . . . . Largest Group . | . . . . . Highest-Rated Group . | . . . . . Highest-Rated Ally . | . . . . . Total Orders . | . . . . . Ally Attacks . | . . . . . Total Damage . | . . . . . Kills . | . . . . . Allies Corrupted . | . . . . . Allies Melted . | . . . . . Intel | -11 -10 -9 -8 -7 ------- Run | Yrd Mat Mat Mat Fac Robot Analysis Total . | . . . . . Derelict Logs Recovered . | . . . . . Drone Launches . | . . . . . Drone Recoveries . | . . . . . Exploration | -11 -10 -9 -8 -7 ------------- Run | Yrd Mat Mat Mat Fac Turns Passed 2251 | 63 159 652 441 936 Spaces Moved 1017 | 64 121 286 167 379 Core 106 | 13 . . 7 86 Treads . | . . . . . Legs 666 | . 32 286 160 188 Wheels 140 | 51 89 . . . Hover 105 | . . . . 105 Flight . | . . . . . Fastest Speed 50 | 50 80 120 50 50 Average Speed 176 | 73 90 191 190 203 Slowest Speed 330 | 80 120 330 260 270 Overloaded Moves . | . . . . . Propulsion Burnouts . | . . . . . Robots Hopped . | . . . . . Cave-ins Triggered . | . . . . . Exploration Rate (%) 16 | 4 35 18 16 11 Regions Visited 4 Branch Regions . Pre-discovered Areas . | . . . . . Known Exits Taken . | . . . . . Unknown Exits Taken 4 | 1 1 1 1 . Scrap Searched . | . . . . . Spaces Dug . | . . . . . Terrain Destroyed 42 | . 13 13 16 . Melee . | . . . . . Projectile 29 | . . 13 16 . AOE 13 | . 13 . . . Terrain Rammed . | . . . . . Walls Destroyed . | . . . . . Machines Disabled . | . . . . . Actions | -11 -10 -9 -8 -7 --------- Run | Yrd Mat Mat Mat Fac Total 1272 | 79 149 339 223 482 Wait . | . . . . . Move 1013 | 63 120 285 166 379 Hop . | . . . . . Pick Up 62 | 10 7 12 11 22 Fast Attach . | . . . . . Attach 36 | 6 1 4 5 20 Detach 2 | . . . . 2 Swap 17 | . 6 3 6 2 Drop 23 | . 2 11 5 5 Fire 104 | . 13 24 30 37 Melee . | . . . . . Ram 15 | . . . . 15 Kick . | . . . . . Crush . | . . . . . Escape Stasis . | . . . . . Rewire . | . . . . . Trap . | . . . . . Miscellaneous . | . . . . . Route ------- -11/Scrapyard -10/Materials -9/Materials -8/Materials -7/Factory History --------- Turn | Location | Event 4 | -11/Scrapyard | Discovered new exit (range 16) 64 | -11/Scrapyard | Entered Materials 163 | -10/Materials | Discovered new exit (range 19) 223 | -10/Materials | Entered another Materials area 223 | -9/Materials | Evolved 2 slots: Utility x1, Weapon x1 517 | -9/Materials | Build established: Tank 819 | -9/Materials | Discovered new exit (range 8) 875 | -9/Materials | Entered another Materials area 875 | -8/Materials | Evolved 2 slots: Power x1, Utility x1 1184 | -8/Materials | Build established: Gunner 1244 | -8/Materials | Discovered new exit (range 10) 1316 | -8/Materials | Entered Factory 1316 | -7/Factory | Evolved 2 slots: Propulsion x1, Utility x1 1346 | -7/Factory | Lost 7 parts (1n2u4w) 1592 | -7/Factory | Build established: Scavenger-Mutant 1822 | -7/Factory | Lost 3 parts (3u) 2147 | -7/Factory | Garrison activated, responded to threat 2196 | -7/Factory | Cargo convoy interrupted 2227 | -7/Factory | System corruption reached 10% 2237 | -7/Factory | Core integrity fell below 50% 2247 | -7/Factory | Core integrity fell below 20% 2252 | -7/Factory | Destroyed by X-62 Marksman with Pulse Rifle Last Messages --------------- 02234_ System corrupted: Energy discharge (-23). 02234_ Slammed into G-47 Trooper. 02235_ Imp. Heat Sink destroyed. 02235_ System corrupted by crushing effect (+1). 02236_ Slammed into G-47 Trooper. 02236_ Target Analyzer destroyed. 02236_ System corrupted by crushing effect (+1). 02236_ Slug penetrates Wall. 02237_ Slammed into G-47 Trooper. 02242_ Penetrated by Slug. 02242_ Slammed into G-47 Trooper. 02243_ G-47 Trooper destroyed. [Achievement: Fist Fight] 02243_ Slug penetrates A-02 Transporter. 02245_ Penetrated by Slug. 02245_ U-05 Engineer destroyed. 02245_ Acquired Particle Gun. 02249_ Penetrated by Slug. 02251_ Acquired Imp. Heat Sink. 02252_ Slug penetrates Wall. Map ----- +----------------------------------------------------+ | ????# T ?????????????????? | | ????# = " ?????????????????? | | ????# = ! ??????????????????? | | ????# * [ ?????????????????? | | ????# ## ![ % ??????????????????? | | ????# ?# %% ## ???????????????????? | | ????# ??#####+###### #??????????????????? | | ????+ ???# # #??????????????????? | | ????# ????# "" # #??????????????????? | | ????# ?????# "G # +??????????????????? | | ????#??????# "" # #??????????????????? | | ???????????# # #??????????????????? | | ???????????# " " " " # #??????????????????? | | ???????????# " " " " # #??????????????????? | | ???????????# " " " " # #??????????????????? | | ???????????# " " " " # #??????????????????? | | ???????????# " " " " # #??????????????????? | | ???????????? " " " " # #??????????????????? | | ???????????? " " " " # #??????????????????? | | ???????????? " " " " m #??????????????????? | | ?????????????" " " " # x #??????????????????? | | ???????????? # #??????????????????? | | ???????????############mhh #??????????????????? | | ??????????????????????#p #??????????????????? | | ????????????????" ????# *!#????""????????????? | | ????????????????" ""??# @* |%#??""""????????????? | | ???????????? """ """ #%%%%==!# """" """????????? | | ?????????# ! + %%% + #?????? | | ???????????? """ """ # =% # """" """????????? | | ????????????????" ""??# % % #??""""????????????? | | ????????????????" ????# % #????""????????????? | | ??????????????????????# #??????????????????? | | ??????????????????????# #??????????????????? | | ??????????????????????# #??????????????????? | | ??????????????????????# #??????????????????? | | ??????????????????????# #??????????????????? | | ??????????????????????# #??????????????????? | | ??????????????????????# ^ #??????????????????? | | ??????????????????????# #??????????????????? | | ??????????????????????# #??????????????????? | | ??????????????????????# a #??????????????????? | | ??????????????????????# #??????????????????? | | ??????????????????????# #??????????????????? | | ??????????????????????# ??????????????????? | | ??????????????????????? ??????????????????? | | ????????????????????????? ???????????????????? | | ?????????????????????????????????????????????????? | | ?????????????????????????????????????????????????? | | ?????????????????????????????????????????????????? | | ?????????????????????????????????????????????????? | +----------------------------------------------------+ Best States ------------- Heat Dissipation 62 Coolant Potential 50 Energy Generation 25 Energy Capacity 400 Matter Stores 380 Matter Capacity 400 Sight Range 16 Terrain Scan Density 10 ECM Strength 1 Armor Coverage 600 Core Shielding 20 Evasion (%) 55 Targeting Accuracy 8 Target Analysis 5 Item Schematics ----------------- Hvy. Armor Plating | -9/Materials | Scanalyzed Robot Schematics ------------------ None Fabricated ------------ Nothing Alien Tech Used ----------------- None Achievements -------------- Fist Fight System Compromised Troublemaker Challenges ------------ None Game ------ Seed CarbideFlightCloak Manual? 0 Play Time 00:27:48 Cumulative 2.8 hours Start 2024.04.04 @ 22:59:56 End 2024.04.04 @ 23:26:44 Sessions 1 Manual Loads 0 Difficulty Rogue Special Mode None Game No. 4 Rogue 2 Adventurer 2 Explorer 0 Win Type - Total 0 Types 0/0/0/0/0/0/0/0/0 Lore% 1 Gallery% 8 Achievement% 10 Wizard Run 0 Options --------- Layout 1 ASCII 0 Keyboard 0 Movement Mouse Keybinds 0 Fullscreen 2 Font 24/Crisp Map View 50x35 Zoom Use 0% Tactical HUD 1 Map Filters NONE Filters NONE Steam 1 RUN: e1cdeaf7-b3c8-413c-a99e-d688a3983bd1